[Event "Titled Tuesday Blitz June 13 Early 2023"]
[White "Sarana, Alexey"]
[Black "Terry, Renato"]
[WhiteFideId "24133795"]
[BlackFideId "3803457"]
[WhiteElo "2714"]
[BlackElo "2575"]
[Result "0-1"]
[Round "8"]
[TimeControl "180+2"]
[Date "2023.06.13"]
[WhiteClock "0:00:00"]
[BlackClock "0:00:01"]
[Board "11"]

1. d4 {[%clk 0:03:00]}  d5 {[%clk 0:02:59]} 2. c4 {[%clk 0:03:01]}  dxc4 {[%clk 0:02:59]} 3. Nf3 {[%clk 0:03:01]}  Nf6 {[%clk 0:03:00]} 4. e3 {[%clk 0:03:01]}  e6 {[%clk 0:03:00]} 5. Bxc4 {[%clk 0:03:02]}  a6 {[%clk 0:03:01]} 6. O-O {[%clk 0:03:02]}  c5 {[%clk 0:03:01]} 7. Nc3 {[%clk 0:03:02]}  b5 {[%clk 0:03:01]} 8. Bb3 {[%clk 0:03:03]}  Bb7 {[%clk 0:03:01]} 9. e4 {[%clk 0:03:03]}  c4 {[%clk 0:02:55]} 10. Bc2 {[%clk 0:03:02]}  b4 {[%clk 0:02:56]} 11. e5 {[%clk 0:02:43]}  bxc3 {[%clk 0:02:52]} 12. exf6 {[%clk 0:02:43]}  cxb2 {[%clk 0:02:52]} 13. Bxb2 {[%clk 0:02:29]}  gxf6 {[%clk 0:02:50]} 14. d5 {[%clk 0:01:56]}  Bxd5 {[%clk 0:01:59]} 15. Ba4+ {[%clk 0:01:40]}  Nd7 {[%clk 0:01:59]} 16. Re1 {[%clk 0:01:29]}  Be7 {[%clk 0:01:59]} 17. Nd4 {[%clk 0:01:11]}  Qa5 {[%clk 0:01:18]} 18. Nc6 {[%clk 0:00:56]}  Bxc6 {[%clk 0:01:00]} 19. Bxc6 {[%clk 0:00:56]}  Rd8 {[%clk 0:01:01]} 20. Qd4 {[%clk 0:00:21]}  Qc7 {[%clk 0:01:01]} 21. Qxc4 {[%clk 0:00:17]}  O-O {[%clk 0:00:57]} 22. Rac1 {[%clk 0:00:17]}  Qb8 {[%clk 0:00:49]} 23. Qe2 {[%clk 0:00:15]}  Ne5 {[%clk 0:00:39]} 24. Be4 {[%clk 0:00:15]}  Ng6 {[%clk 0:00:36]} 25. Rb1 {[%clk 0:00:13]}  Qa7 {[%clk 0:00:35]} 26. g3 {[%clk 0:00:12]}  Rd7 {[%clk 0:00:34]} 27. Bc3 {[%clk 0:00:10]}  Rc8 {[%clk 0:00:33]} 28. Rec1 {[%clk 0:00:08]}  Rdc7 {[%clk 0:00:33]} 29. Bd2 {[%clk 0:00:08]}  Rxc1+ {[%clk 0:00:33]} 30. Bxc1 {[%clk 0:00:09]}  Qd4 {[%clk 0:00:30]} 31. Bh6 {[%clk 0:00:06]}  a5 {[%clk 0:00:26]} 32. Kg2 {[%clk 0:00:05]}  f5 {[%clk 0:00:26]} 33. Bf3 {[%clk 0:00:05]}  Bf8 {[%clk 0:00:26]} 34. Be3 {[%clk 0:00:05]}  Qa4 {[%clk 0:00:25]} 35. Rc1 {[%clk 0:00:03]}  Rb8 {[%clk 0:00:23]} 36. Rc2 {[%clk 0:00:03]}  f4 {[%clk 0:00:22]} 37. Bc1 {[%clk 0:00:02]}  fxg3 {[%clk 0:00:20]} 38. hxg3 {[%clk 0:00:03]}  Bg7 {[%clk 0:00:20]} 39. Rc4 {[%clk 0:00:03]}  Qd7 {[%clk 0:00:18]} 40. Qc2 {[%clk 0:00:03]}  Be5 {[%clk 0:00:15]} 41. Be4 {[%clk 0:00:03]}  Kg7 {[%clk 0:00:15]} 42. Rc5 {[%clk 0:00:03]}  Bf6 {[%clk 0:00:12]} 43. Rxa5 {[%clk 0:00:02]}  Rc8 {[%clk 0:00:11]} 44. Rc5 {[%clk 0:00:03]}  Rxc5 {[%clk 0:00:11]} 45. Qxc5 {[%clk 0:00:04]}  Bd4 {[%clk 0:00:12]} 46. Qc2 {[%clk 0:00:04]}  Qb5 {[%clk 0:00:12]} 47. Qd3 {[%clk 0:00:04]}  Qc5 {[%clk 0:00:10]} 48. Qd2 {[%clk 0:00:04]}  f5 {[%clk 0:00:09]} 49. Bf3 {[%clk 0:00:04]}  Kf7 {[%clk 0:00:08]} 50. Qh6 {[%clk 0:00:04]}  Kg8 {[%clk 0:00:08]} 51. Qd2 {[%clk 0:00:02]}  Kf7 {[%clk 0:00:06]} 52. Qh6 {[%clk 0:00:01]}  Kg8 {[%clk 0:00:06]} 53. Be3 {[%clk 0:00:01]}  Bxe3 {[%clk 0:00:06]} 54. Qxe3 {[%clk 0:00:02]}  Qd6 {[%clk 0:00:02]} 55. a4 {[%clk 0:00:02]}  Ne5 {[%clk 0:00:03]} 56. a5 {[%clk 0:00:02]}  Nc4 {[%clk 0:00:03]} 57. Qc3 {[%clk 0:00:00]}  Ne5 {[%clk 0:00:01]} 0-1


[Site "https://www.chess.com"]

[Event "Titled Tuesday Blitz June 13 Early 2023"]
[White "Chigaev, Maksim"]
[Black "Duda, Jan-Krzysztof"]
[WhiteFideId "4108116"]
[BlackFideId "1170546"]
[WhiteElo "2561"]
[BlackElo "2783"]
[Result "0-1"]
[Round "8"]
[TimeControl "180+2"]
[Date "2023.06.13"]
[WhiteClock "0:00:07"]
[BlackClock "0:01:21"]
[Board "13"]

1. d4 {[%clk 0:02:54]}  e6 {[%clk 0:03:00]} 2. Nf3 {[%clk 0:02:50]}  Nf6 {[%clk 0:02:58]} 3. c4 {[%clk 0:02:48]}  h6 {[%clk 0:02:58]} 4. g3 {[%clk 0:02:43]}  d5 {[%clk 0:02:55]} 5. Nc3 {[%clk 0:02:42]}  Bd6 {[%clk 0:02:55]} 6. a3 {[%clk 0:02:42]}  O-O {[%clk 0:02:55]} 7. g4 {[%clk 0:02:42]}  Nxg4 {[%clk 0:02:53]} 8. Rg1 {[%clk 0:02:42]}  f5 {[%clk 0:02:36]} 9. h3 {[%clk 0:02:33]}  h5 {[%clk 0:02:36]} 10. c5 {[%clk 0:01:46]}  Be7 {[%clk 0:02:27]} 11. hxg4 {[%clk 0:01:46]}  fxg4 {[%clk 0:02:28]} 12. Bg2 {[%clk 0:01:39]}  Nc6 {[%clk 0:02:25]} 13. Be3 {[%clk 0:01:19]}  b6 {[%clk 0:02:25]} 14. cxb6 {[%clk 0:01:17]}  axb6 {[%clk 0:02:26]} 15. Ne5 {[%clk 0:00:58]}  Nxe5 {[%clk 0:02:26]} 16. dxe5 {[%clk 0:00:59]}  Bb7 {[%clk 0:02:12]} 17. Qc2 {[%clk 0:00:45]}  d4 {[%clk 0:01:31]} 18. O-O-O {[%clk 0:00:41]}  Bxg2 {[%clk 0:01:32]} 19. Rxd4 {[%clk 0:00:07]}  Bd5 {[%clk 0:01:32]} 20. Qg6 {[%clk 0:00:07]}  Qe8 {[%clk 0:01:21]} 21. Rxd5 {[%clk 0:00:07]} 0-1


[Site "https://www.chess.com"]

[Event "Titled Tuesday Blitz June 13 Early 2023"]
[White "Shubenkova, Veronika"]
[Black "Bacrot, Etienne"]
[WhiteFideId "44124040"]
[BlackFideId "605506"]
[WhiteElo "2060"]
[BlackElo "2672"]
[Result "0-1"]
[Round "8"]
[TimeControl "180+2"]
[Date "2023.06.13"]
[WhiteClock "0:00:40"]
[BlackClock "0:00:30"]
[Board "18"]

1. e4 {[%clk 0:03:00]}  c5 {[%clk 0:02:59]} 2. Nc3 {[%clk 0:03:00]}  Nc6 {[%clk 0:02:59]} 3. g3 {[%clk 0:03:01]}  g6 {[%clk 0:02:59]} 4. Bg2 {[%clk 0:03:01]}  Bg7 {[%clk 0:03:00]} 5. d3 {[%clk 0:03:02]}  e6 {[%clk 0:03:00]} 6. f4 {[%clk 0:03:02]}  Nge7 {[%clk 0:03:00]} 7. Nf3 {[%clk 0:03:02]}  b6 {[%clk 0:03:00]} 8. O-O {[%clk 0:03:02]}  Bb7 {[%clk 0:03:01]} 9. Rb1 {[%clk 0:03:02]}  d5 {[%clk 0:02:59]} 10. e5 {[%clk 0:03:02]}  a6 {[%clk 0:02:55]} 11. Ne2 {[%clk 0:03:02]}  d4 {[%clk 0:02:53]} 12. h3 {[%clk 0:02:57]}  h6 {[%clk 0:02:52]} 13. g4 {[%clk 0:02:57]}  Nd5 {[%clk 0:02:50]} 14. Ng3 {[%clk 0:02:56]}  Qc7 {[%clk 0:02:46]} 15. Ne4 {[%clk 0:02:51]}  O-O-O {[%clk 0:02:46]} 16. Nd6+ {[%clk 0:02:50]}  Rxd6 {[%clk 0:02:46]} 17. exd6 {[%clk 0:02:50]}  Qxd6 {[%clk 0:02:46]} 18. Ne5 {[%clk 0:02:40]}  Rf8 {[%clk 0:02:09]} 19. Nxc6 {[%clk 0:02:35]}  Bxc6 {[%clk 0:02:08]} 20. Qe1 {[%clk 0:02:23]}  Nb4 {[%clk 0:01:52]} 21. Qf2 {[%clk 0:02:22]}  Nxa2 {[%clk 0:01:45]} 22. Bd2 {[%clk 0:02:18]}  Nb4 {[%clk 0:01:41]} 23. Bxb4 {[%clk 0:02:17]}  cxb4 {[%clk 0:01:42]} 24. f5 {[%clk 0:02:10]}  gxf5 {[%clk 0:01:37]} 25. gxf5 {[%clk 0:02:06]}  Rg8 {[%clk 0:01:20]} 26. Kh1 {[%clk 0:02:00]}  Be5 {[%clk 0:00:58]} 27. Rg1 {[%clk 0:01:53]}  Rg3 {[%clk 0:00:50]} 28. Bxc6 {[%clk 0:01:44]}  Rxh3+ {[%clk 0:00:48]} 29. Kg2 {[%clk 0:01:41]}  Rh2+ {[%clk 0:00:48]} 30. Kf1 {[%clk 0:01:41]}  Rxf2+ {[%clk 0:00:48]} 31. Kxf2 {[%clk 0:01:41]}  Qxc6 {[%clk 0:00:49]} 32. Rg8+ {[%clk 0:01:41]}  Kd7 {[%clk 0:00:49]} 33. fxe6+ {[%clk 0:01:41]}  Kxe6 {[%clk 0:00:48]} 34. Re1 {[%clk 0:01:38]}  f6 {[%clk 0:00:45]} 35. Re2 {[%clk 0:01:33]}  a5 {[%clk 0:00:45]} 36. b3 {[%clk 0:01:32]}  b5 {[%clk 0:00:45]} 37. Rh8 {[%clk 0:01:18]}  Qh1 {[%clk 0:00:39]} 38. Re8+ {[%clk 0:01:16]}  Kf5 {[%clk 0:00:38]} 39. Rg8 {[%clk 0:01:12]}  a4 {[%clk 0:00:35]} 40. bxa4 {[%clk 0:01:11]}  bxa4 {[%clk 0:00:36]} 41. Rg1 {[%clk 0:01:00]}  Qc6 {[%clk 0:00:33]} 42. Ra1 {[%clk 0:00:57]}  a3 {[%clk 0:00:33]} 43. Kg1 {[%clk 0:00:49]}  Qc3 {[%clk 0:00:31]} 44. Rf1+ {[%clk 0:00:40]}  Ke6 {[%clk 0:00:30]} 0-1


[Site "https://www.chess.com"]

[Event "Titled Tuesday Blitz June 13 Early 2023"]
[White "Fedoseev, Vladimir"]
[Black "Hajiyev, Kanan"]
[WhiteFideId "24130737"]
[BlackFideId "13404148"]
[WhiteElo "2743"]
[BlackElo "2115"]
[Result "1-0"]
[Round "8"]
[TimeControl "180+2"]
[Date "2023.06.13"]
[WhiteClock "0:02:09"]
[BlackClock "0:00:11"]
[Board "19"]

1. h4 {[%clk 0:03:00]}  h5 {[%clk 0:02:57]} 2. a4 {[%clk 0:02:59]}  a5 {[%clk 0:02:56]} 3. Nf3 {[%clk 0:02:59]}  Nf6 {[%clk 0:02:56]} 4. e3 {[%clk 0:02:59]}  d5 {[%clk 0:02:57]} 5. c4 {[%clk 0:02:58]}  c6 {[%clk 0:02:49]} 6. b3 {[%clk 0:02:57]}  Bg4 {[%clk 0:02:49]} 7. Bb2 {[%clk 0:02:57]}  g6 {[%clk 0:02:49]} 8. cxd5 {[%clk 0:02:54]}  cxd5 {[%clk 0:02:47]} 9. Bb5+ {[%clk 0:02:53]}  Nc6 {[%clk 0:02:46]} 10. Qc1 {[%clk 0:02:50]}  Bxf3 {[%clk 0:02:43]} 11. Bxc6+ {[%clk 0:02:49]}  bxc6 {[%clk 0:02:44]} 12. Qxc6+ {[%clk 0:02:49]}  Nd7 {[%clk 0:02:44]} 13. gxf3 {[%clk 0:02:42]}  Rc8 {[%clk 0:02:14]} 14. Qxd5 {[%clk 0:02:41]}  Rg8 {[%clk 0:01:58]} 15. Nc3 {[%clk 0:02:38]}  Bg7 {[%clk 0:01:54]} 16. Ke2 {[%clk 0:02:33]}  Qb6 {[%clk 0:01:52]} 17. Rac1 {[%clk 0:02:29]}  e6 {[%clk 0:01:50]} 18. Qb5 {[%clk 0:02:29]}  Qxb5+ {[%clk 0:01:47]} 19. Nxb5 {[%clk 0:02:27]}  Rxc1 {[%clk 0:00:51]} 20. Rxc1 {[%clk 0:02:28]}  Ke7 {[%clk 0:00:46]} 21. Ba3+ {[%clk 0:02:25]}  Kd8 {[%clk 0:00:24]} 22. Nd6 {[%clk 0:02:12]}  f5 {[%clk 0:00:11]} 23. Rc8+ {[%clk 0:02:09]} 1-0


[Site "https://www.chess.com"]

[Event "Titled Tuesday Blitz June 13 Early 2023"]
[White "Wagner, Dennis"]
[Black "Tari, Aryan"]
[WhiteFideId "24650684"]
[BlackFideId "1510045"]
[WhiteElo "2478"]
[BlackElo "2586"]
[Result "0-1"]
[Round "8"]
[TimeControl "180+2"]
[Date "2023.06.13"]
[WhiteClock "0:00:01"]
[BlackClock "0:01:31"]
[Board "21"]

1. e4 {[%clk 0:03:00]}  e5 {[%clk 0:02:59]} 2. Nf3 {[%clk 0:03:00]}  Nc6 {[%clk 0:03:00]} 3. Bb5 {[%clk 0:03:01]}  Nge7 {[%clk 0:03:00]} 4. Nc3 {[%clk 0:02:57]}  Ng6 {[%clk 0:02:59]} 5. d4 {[%clk 0:02:48]}  exd4 {[%clk 0:02:59]} 6. Nxd4 {[%clk 0:02:49]}  Nxd4 {[%clk 0:03:00]} 7. Qxd4 {[%clk 0:02:49]}  c6 {[%clk 0:03:00]} 8. Be2 {[%clk 0:02:47]}  Qb6 {[%clk 0:02:58]} 9. Qd3 {[%clk 0:02:38]}  Be7 {[%clk 0:02:57]} 10. O-O {[%clk 0:02:38]}  O-O {[%clk 0:02:57]} 11. a4 {[%clk 0:02:35]}  d6 {[%clk 0:02:41]} 12. Be3 {[%clk 0:02:32]}  Qc7 {[%clk 0:02:40]} 13. f4 {[%clk 0:02:27]}  Kh8 {[%clk 0:02:36]} 14. Bd4 {[%clk 0:01:58]}  f5 {[%clk 0:02:32]} 15. Qg3 {[%clk 0:01:00]}  Bh4 {[%clk 0:02:11]} 16. Qh3 {[%clk 0:00:14]}  fxe4 {[%clk 0:02:07]} 17. f5 {[%clk 0:00:15]}  d5 {[%clk 0:02:05]} 18. Bg4 {[%clk 0:00:09]}  Bf6 {[%clk 0:01:50]} 19. Bxf6 {[%clk 0:00:05]}  Rxf6 {[%clk 0:01:44]} 20. fxg6 {[%clk 0:00:05]}  h6 {[%clk 0:01:30]} 21. Rxf6 {[%clk 0:00:05]}  Bxg4 {[%clk 0:01:30]} 22. Qxg4 {[%clk 0:00:03]}  gxf6 {[%clk 0:01:31]} 23. Rf1 {[%clk 0:00:03]}  Kg7 {[%clk 0:01:31]} 24. Qg5 {[%clk 0:00:01]}  hxg5 {[%clk 0:01:31]} 0-1


[Site "https://www.chess.com"]

[Event "Titled Tuesday Blitz June 13 Early 2023"]
[White "Maatman, Nick"]
[Black "Galchenko, Matvey"]
[WhiteFideId "1040391"]
[BlackFideId "24175480"]
[WhiteElo "2720"]
[BlackElo "2423"]
[Result "0-1"]
[Round "8"]
[TimeControl "180+2"]
[Date "2023.06.13"]
[WhiteClock "0:00:02"]
[BlackClock "0:00:13"]
[Board "23"]

1. d4 {[%clk 0:02:58]}  Nf6 {[%clk 0:02:55]} 2. c4 {[%clk 0:02:56]}  c5 {[%clk 0:02:55]} 3. d5 {[%clk 0:02:55]}  e6 {[%clk 0:02:55]} 4. Nf3 {[%clk 0:02:55]}  exd5 {[%clk 0:02:56]} 5. cxd5 {[%clk 0:02:56]}  d6 {[%clk 0:02:56]} 6. e4 {[%clk 0:02:56]}  g6 {[%clk 0:02:57]} 7. Bd3 {[%clk 0:02:56]}  Bg7 {[%clk 0:02:57]} 8. h3 {[%clk 0:02:56]}  O-O {[%clk 0:02:58]} 9. O-O {[%clk 0:02:57]}  Re8 {[%clk 0:02:56]} 10. Re1 {[%clk 0:02:56]}  a6 {[%clk 0:02:54]} 11. a4 {[%clk 0:02:56]}  Nbd7 {[%clk 0:02:40]} 12. Nc3 {[%clk 0:02:51]}  Nh5 {[%clk 0:02:20]} 13. Bg5 {[%clk 0:02:14]}  Bf6 {[%clk 0:02:19]} 14. Be3 {[%clk 0:02:04]}  Ne5 {[%clk 0:02:16]} 15. Nxe5 {[%clk 0:02:02]}  Bxe5 {[%clk 0:02:17]} 16. f4 {[%clk 0:01:52]}  Nxf4 {[%clk 0:01:55]} 17. Bf1 {[%clk 0:01:42]}  Qf6 {[%clk 0:01:31]} 18. Kh1 {[%clk 0:01:24]}  Nh5 {[%clk 0:01:28]} 19. Qf3 {[%clk 0:01:16]}  Bd7 {[%clk 0:00:53]} 20. a5 {[%clk 0:01:05]}  Qh4 {[%clk 0:00:43]} 21. Bd3 {[%clk 0:00:54]}  Re7 {[%clk 0:00:27]} 22. Ne2 {[%clk 0:00:48]}  Rae8 {[%clk 0:00:24]} 23. Rab1 {[%clk 0:00:35]}  Bb5 {[%clk 0:00:20]} 24. Bxb5 {[%clk 0:00:32]}  axb5 {[%clk 0:00:21]} 25. Bf2 {[%clk 0:00:30]}  Qf6 {[%clk 0:00:15]} 26. b4 {[%clk 0:00:14]}  c4 {[%clk 0:00:15]} 27. Rbc1 {[%clk 0:00:08]}  Bb2 {[%clk 0:00:14]} 28. Rc2 {[%clk 0:00:08]}  Rxe4 {[%clk 0:00:13]} 29. g4 {[%clk 0:00:02]} 0-1


[Site "https://www.chess.com"]

[Event "Titled Tuesday Blitz June 13 Early 2023"]
[White "Pulpan, Jakub"]
[Black "Arutinian, David"]
[WhiteFideId "302759"]
[BlackFideId "13601741"]
[WhiteElo "2484"]
[BlackElo "2525"]
[Result "0-1"]
[Round "8"]
[TimeControl "180+2"]
[Date "2023.06.13"]
[WhiteClock "0:00:06"]
[BlackClock "0:00:57"]
[Board "24"]

1. Nf3 {[%clk 0:02:58]}  Nf6 {[%clk 0:02:59]} 2. b3 {[%clk 0:02:57]}  d5 {[%clk 0:02:59]} 3. Bb2 {[%clk 0:02:58]}  c5 {[%clk 0:03:00]} 4. e3 {[%clk 0:02:57]}  g6 {[%clk 0:03:01]} 5. c4 {[%clk 0:02:57]}  Bg7 {[%clk 0:03:01]} 6. cxd5 {[%clk 0:02:45]}  Qxd5 {[%clk 0:03:02]} 7. Bc4 {[%clk 0:02:34]}  Qd8 {[%clk 0:02:58]} 8. O-O {[%clk 0:02:31]}  O-O {[%clk 0:02:58]} 9. d4 {[%clk 0:02:28]}  cxd4 {[%clk 0:02:54]} 10. Nxd4 {[%clk 0:02:28]}  Bd7 {[%clk 0:02:47]} 11. Be2 {[%clk 0:02:27]}  Nc6 {[%clk 0:02:47]} 12. Nd2 {[%clk 0:02:21]}  Ne8 {[%clk 0:02:32]} 13. Nxc6 {[%clk 0:02:13]}  Bxc6 {[%clk 0:02:33]} 14. Bxg7 {[%clk 0:02:14]}  Kxg7 {[%clk 0:02:34]} 15. Bf3 {[%clk 0:02:14]}  Rc8 {[%clk 0:02:32]} 16. Qe2 {[%clk 0:02:07]}  Nd6 {[%clk 0:02:30]} 17. Rfd1 {[%clk 0:02:04]}  Qa5 {[%clk 0:02:27]} 18. Rdc1 {[%clk 0:01:41]}  Bb5 {[%clk 0:02:11]} 19. Nc4 {[%clk 0:00:52]}  Bxc4 {[%clk 0:02:05]} 20. bxc4 {[%clk 0:00:53]}  b6 {[%clk 0:02:05]} 21. Rc2 {[%clk 0:00:53]}  Rc5 {[%clk 0:02:02]} 22. Rac1 {[%clk 0:00:53]}  Rfc8 {[%clk 0:02:03]} 23. Qd3 {[%clk 0:00:29]}  Qa4 {[%clk 0:01:59]} 24. Be2 {[%clk 0:00:27]}  Kg8 {[%clk 0:01:55]} 25. Qb3 {[%clk 0:00:27]}  Qc6 {[%clk 0:01:51]} 26. g3 {[%clk 0:00:26]}  Qe4 {[%clk 0:01:51]} 27. Bd3 {[%clk 0:00:25]}  Qg4 {[%clk 0:01:49]} 28. Be2 {[%clk 0:00:25]}  Qf5 {[%clk 0:01:49]} 29. Bd3 {[%clk 0:00:25]}  Qe6 {[%clk 0:01:49]} 30. Qa4 {[%clk 0:00:19]}  R8c7 {[%clk 0:01:49]} 31. Bf1 {[%clk 0:00:19]}  h5 {[%clk 0:01:48]} 32. h4 {[%clk 0:00:19]}  Qf5 {[%clk 0:01:42]} 33. Qb3 {[%clk 0:00:18]}  Qe5 {[%clk 0:01:35]} 34. Bd3 {[%clk 0:00:15]}  Qe6 {[%clk 0:01:34]} 35. Qa4 {[%clk 0:00:14]}  Kg7 {[%clk 0:01:31]} 36. Qb4 {[%clk 0:00:11]}  Qe5 {[%clk 0:01:28]} 37. Qa4 {[%clk 0:00:10]}  Qe6 {[%clk 0:01:08]} 38. Qb3 {[%clk 0:00:10]}  Kg8 {[%clk 0:01:04]} 39. Qb4 {[%clk 0:00:07]}  Qh3 {[%clk 0:01:01]} 40. Bf1 {[%clk 0:00:07]}  Qg4 {[%clk 0:01:01]} 41. Be2 {[%clk 0:00:07]}  Qe4 {[%clk 0:00:58]} 42. Bd3 {[%clk 0:00:06]}  Qxd3 {[%clk 0:00:57]} 0-1


[Site "https://www.chess.com"]

[Event "Titled Tuesday Blitz June 13 Early 2023"]
[White "Harsha Bharathakoti"]
[Black "Nazari, Arad"]
[WhiteFideId "5078776"]
[BlackFideId "12577324"]
[WhiteElo "2504"]
[BlackElo "2175"]
[Result "0-1"]
[Round "8"]
[TimeControl "180+2"]
[Date "2023.06.13"]
[WhiteClock "0:00:00"]
[BlackClock "0:00:42"]
[Board "25"]

1. Nf3 {[%clk 0:03:00]}  c5 {[%clk 0:02:59]} 2. g3 {[%clk 0:03:01]}  Nc6 {[%clk 0:02:58]} 3. Bg2 {[%clk 0:03:01]}  g6 {[%clk 0:02:58]} 4. O-O {[%clk 0:03:01]}  Bg7 {[%clk 0:02:58]} 5. c4 {[%clk 0:03:01]}  e5 {[%clk 0:02:58]} 6. Nc3 {[%clk 0:03:01]}  Nge7 {[%clk 0:02:58]} 7. a3 {[%clk 0:02:58]}  O-O {[%clk 0:02:56]} 8. Rb1 {[%clk 0:02:59]}  a5 {[%clk 0:02:57]} 9. d3 {[%clk 0:02:57]}  d6 {[%clk 0:02:57]} 10. Ne1 {[%clk 0:02:53]}  Be6 {[%clk 0:02:55]} 11. Nd5 {[%clk 0:02:51]}  Rb8 {[%clk 0:02:53]} 12. Nc2 {[%clk 0:02:44]}  Qd7 {[%clk 0:02:53]} 13. b4 {[%clk 0:02:36]}  axb4 {[%clk 0:02:45]} 14. axb4 {[%clk 0:02:37]}  b5 {[%clk 0:02:30]} 15. bxc5 {[%clk 0:02:25]}  bxc4 {[%clk 0:02:25]} 16. Rxb8 {[%clk 0:01:55]}  Rxb8 {[%clk 0:02:20]} 17. Nb6 {[%clk 0:01:55]}  Qa7 {[%clk 0:02:13]} 18. Nxc4 {[%clk 0:01:38]}  dxc5 {[%clk 0:02:06]} 19. Bd2 {[%clk 0:01:30]}  Nd4 {[%clk 0:02:03]} 20. e3 {[%clk 0:01:26]}  Nxc2 {[%clk 0:01:49]} 21. Qxc2 {[%clk 0:01:26]}  Nd5 {[%clk 0:01:50]} 22. Rb1 {[%clk 0:01:14]}  Nb4 {[%clk 0:01:48]} 23. Qb3 {[%clk 0:01:07]}  Rd8 {[%clk 0:01:45]} 24. Bxb4 {[%clk 0:01:04]}  cxb4 {[%clk 0:01:46]} 25. Qxb4 {[%clk 0:01:05]}  Rxd3 {[%clk 0:01:43]} 26. Na5 {[%clk 0:00:34]}  h5 {[%clk 0:01:37]} 27. Nc6 {[%clk 0:00:34]}  Qa2 {[%clk 0:01:34]} 28. Be4 {[%clk 0:00:27]}  Rd2 {[%clk 0:01:20]} 29. Ne7+ {[%clk 0:00:11]}  Kh7 {[%clk 0:01:20]} 30. Rf1 {[%clk 0:00:07]}  Bc4 {[%clk 0:01:19]} 31. Rc1 {[%clk 0:00:02]}  Be6 {[%clk 0:01:11]} 32. Rf1 {[%clk 0:00:02]}  Bh3 {[%clk 0:01:02]} 33. Bb1 {[%clk 0:00:01]}  Qa6 {[%clk 0:00:58]} 34. Re1 {[%clk 0:00:01]}  Rd7 {[%clk 0:00:51]} 35. Be4 {[%clk 0:00:00]}  Bf8 {[%clk 0:00:42]} 0-1


[Site "https://www.chess.com"]

[Event "Titled Tuesday Blitz June 13 Early 2023"]
[White "Ashraf, Artin"]
[Black "Talibov, Shiroghlan"]
[WhiteFideId "22514805"]
[BlackFideId "13429078"]
[WhiteElo "2224"]
[BlackElo "2274"]
[Result "1-0"]
[Round "8"]
[TimeControl "180+2"]
[Date "2023.06.13"]
[WhiteClock "0:00:25"]
[BlackClock "0:00:19"]
[Board "26"]

1. e4 {[%clk 0:02:59]}  c5 {[%clk 0:02:46]} 2. Nf3 {[%clk 0:02:59]}  d6 {[%clk 0:02:30]} 3. c3 {[%clk 0:02:42]}  Nf6 {[%clk 0:02:27]} 4. h3 {[%clk 0:02:41]}  Nc6 {[%clk 0:02:23]} 5. Bd3 {[%clk 0:02:30]}  g6 {[%clk 0:02:20]} 6. Bc2 {[%clk 0:02:29]}  Bg7 {[%clk 0:02:14]} 7. O-O {[%clk 0:02:28]}  O-O {[%clk 0:01:58]} 8. Re1 {[%clk 0:02:14]}  e5 {[%clk 0:01:45]} 9. d4 {[%clk 0:02:04]}  cxd4 {[%clk 0:01:46]} 10. cxd4 {[%clk 0:02:05]}  Qe7 {[%clk 0:01:45]} 11. d5 {[%clk 0:02:01]}  Nb8 {[%clk 0:01:44]} 12. Bg5 {[%clk 0:01:54]}  h6 {[%clk 0:01:42]} 13. Bh4 {[%clk 0:01:52]}  Nbd7 {[%clk 0:01:39]} 14. Nc3 {[%clk 0:01:49]}  a6 {[%clk 0:01:39]} 15. Nd2 {[%clk 0:01:43]}  b5 {[%clk 0:01:33]} 16. Nb3 {[%clk 0:01:38]}  Nb6 {[%clk 0:01:28]} 17. Na5 {[%clk 0:01:35]}  Bd7 {[%clk 0:01:27]} 18. Nc6 {[%clk 0:01:17]}  Qe8 {[%clk 0:01:24]} 19. Rc1 {[%clk 0:01:17]}  Nh5 {[%clk 0:01:23]} 20. Be7 {[%clk 0:01:09]}  Nc8 {[%clk 0:01:05]} 21. Bxf8 {[%clk 0:01:07]}  Qxf8 {[%clk 0:01:02]} 22. Qd2 {[%clk 0:00:58]}  Nf4 {[%clk 0:00:59]} 23. Ne2 {[%clk 0:00:55]}  Nxe2+ {[%clk 0:00:51]} 24. Rxe2 {[%clk 0:00:51]}  Nb6 {[%clk 0:00:47]} 25. b3 {[%clk 0:00:46]}  f5 {[%clk 0:00:44]} 26. Qa5 {[%clk 0:00:43]}  Nc8 {[%clk 0:00:35]} 27. Qc7 {[%clk 0:00:27]}  Bxc6 {[%clk 0:00:26]} 28. Qxc6 {[%clk 0:00:26]}  Ra7 {[%clk 0:00:24]} 29. exf5 {[%clk 0:00:26]}  Ne7 {[%clk 0:00:21]} 30. Qxd6 {[%clk 0:00:25]}  gxf5 {[%clk 0:00:19]} 31. Qe6+ {[%clk 0:00:25]} 1-0


[Site "https://www.chess.com"]

[Event "Titled Tuesday Blitz June 13 Early 2023"]
[White "Darini, Pouria"]
[Black "Timofeev, Artyom"]
[WhiteFideId "12502200"]
[BlackFideId "4140419"]
[WhiteElo "2482"]
[BlackElo "2570"]
[Result "0-1"]
[Round "8"]
[TimeControl "180+2"]
[Date "2023.06.13"]
[WhiteClock "0:00:00"]
[BlackClock "0:01:05"]
[Board "27"]

1. Nf3 {[%clk 0:03:00]}  d5 {[%clk 0:02:58]} 2. c4 {[%clk 0:03:00]}  d4 {[%clk 0:02:58]} 3. e3 {[%clk 0:03:00]}  Nc6 {[%clk 0:02:58]} 4. b4 {[%clk 0:02:58]}  Nxb4 {[%clk 0:02:48]} 5. Nxd4 {[%clk 0:02:55]}  e5 {[%clk 0:02:46]} 6. a3 {[%clk 0:02:44]}  exd4 {[%clk 0:02:37]} 7. axb4 {[%clk 0:02:45]}  dxe3 {[%clk 0:02:37]} 8. fxe3 {[%clk 0:02:42]}  Nf6 {[%clk 0:02:28]} 9. Be2 {[%clk 0:02:40]}  g6 {[%clk 0:02:16]} 10. O-O {[%clk 0:02:38]}  Bg7 {[%clk 0:02:16]} 11. Bb2 {[%clk 0:02:38]}  O-O {[%clk 0:02:16]} 12. Nc3 {[%clk 0:02:22]}  Qe7 {[%clk 0:02:08]} 13. b5 {[%clk 0:02:15]}  Rd8 {[%clk 0:02:08]} 14. Ra2 {[%clk 0:01:57]}  Bf5 {[%clk 0:02:02]} 15. Ba1 {[%clk 0:01:42]}  c6 {[%clk 0:01:58]} 16. bxc6 {[%clk 0:01:41]}  bxc6 {[%clk 0:01:58]} 17. Qe1 {[%clk 0:01:22]}  a5 {[%clk 0:01:54]} 18. Kh1 {[%clk 0:01:12]}  Nd7 {[%clk 0:01:43]} 19. Na4 {[%clk 0:00:50]}  Ne5 {[%clk 0:01:38]} 20. d4 {[%clk 0:00:25]}  Nd3 {[%clk 0:01:34]} 21. Qd2 {[%clk 0:00:24]}  Nb4 {[%clk 0:01:30]} 22. Rb2 {[%clk 0:00:21]}  Re8 {[%clk 0:01:30]} 23. Rb3 {[%clk 0:00:12]}  Rad8 {[%clk 0:01:29]} 24. Rc1 {[%clk 0:00:07]}  Qg5 {[%clk 0:01:28]} 25. Bf3 {[%clk 0:00:07]}  Bh6 {[%clk 0:01:23]} 26. Re1 {[%clk 0:00:03]}  Qh4 {[%clk 0:01:20]} 27. Rf1 {[%clk 0:00:02]}  Nc2 {[%clk 0:01:15]} 28. Rc3 {[%clk 0:00:02]}  Nxe3 {[%clk 0:01:14]} 29. Re1 {[%clk 0:00:01]}  Ng4 {[%clk 0:01:05]} 30. Rxe8+ {[%clk 0:00:00]}  Rxe8 {[%clk 0:01:05]} 0-1


[Site "https://www.chess.com"]